bitfinex/quotes_SOLUSD_20230112
["timestamp","ask_amount","ask_price","bid_price","bid_amount"]
[1673519281934,46.87,16.003,15.986,0.96]
[1673519282120,46.87,16.004,15.987,46.92]
[1673519282335,46.87,16.004,15.988,1.92]
[1673519283090,46.87,16.004,15.988,21.92]
[1673519283288,46.87,16.004,15.988,20.96]
[1673519283500,66.01496728,16.004,15.988,20.96]
[1673519284353,17.0,16.003,15.988,20.96]
[1673519284662,46.87,16.002,15.988,20.96]
[1673519285815,46.87,16.004,15.989,0.96]
[1673519286030,19.14496728,16.008,15.99,0.96]
[1673519286232,66.86,16.007,15.991,0.96]
[1673519286437,66.86,16.007,15.992,0.96]
[1673519286649,66.86,16.007,15.991,0.96]
[1673519286863,66.86,16.007,15.99,0.96]
[1673519287081,19.14496728,16.006,15.989,0.96]
[1673519287272,66.86,16.005,15.99,0.96]
[1673519287490,66.86,16.005,15.989,0.96]
[1673519287702,17.0,16.004,15.989,0.96]
[1673519287915,46.87,16.003,15.989,0.96]
[1673519288124,20.0,16.005,15.989,0.96]
[1673519288125,46.87,16.004,15.991,20.0]
[1673519288446,46.87,16.004,15.993,20.0]
[1673519288636,20.0,16.005,15.993,20.0]
[1673519288849,20.0,16.007,15.994,1.92]
[1673519289060,46.86,16.006,15.994,1.92]
[1673519289280,20.0,16.005,15.994,1.92]
[1673519289496,46.86,16.006,15.994,0.96]
[1673519289816,118.7935,16.009,15.994,0.96]
[1673519289817,20.0,16.005,15.994,0.96]
[1673519290054,20.0,16.005,15.994,1.92]
[1673519290253,20.0,16.007,15.994,1.92]
[1673519290465,46.86,16.006,15.994,1.92]
[1673519290659,20.0,16.005,15.994,1.92]
[1673519291074,20.0,16.007,15.993,20.0]
[1673519291400,46.86,16.006,15.993,20.0]
[1673519291611,20.0,16.005,15.993,20.0]
[1673519292247,20.0,16.007,15.993,20.0]
[1673519292458,46.86,16.006,15.993,20.0]
[1673519292671,37.0,16.005,15.993,20.0]
[1673519292859,46.87,16.004,15.992,118.6838]
[1673519297513,37.0,16.005,15.992,118.6838]
[1673519298020,46.87,16.004,15.992,118.6838]
[1673519299395,20.0,16.005,15.992,118.6838]
[1673519301386,46.87,16.004,15.992,118.6838]
[1673519302755,46.87,16.004,15.993,20.0]
[1673519302976,20.0,16.005,15.993,20.0]
[1673519303160,20.0,16.008,15.993,20.0]
[1673519303801,46.86,16.007,15.993,20.0]
[1673519304117,20.0,16.006,15.993,20.0]
[1673519304737,20.0,16.007,15.993,20.0]
[1673519306950,20.0,16.007,15.994,1.92]
[1673519307153,20.0,16.008,15.994,1.92]
[1673519307689,20.0,16.008,15.993,20.0]
[1673519307899,46.86,16.007,15.993,20.0]
[1673519308105,20.0,16.006,15.993,20.0]
[1673519308315,20.0,16.006,15.994,0.96]
[1673519308632,20.0,16.007,15.994,0.96]
[1673519308835,20.0,16.007,15.994,1.92]
[1673519313056,20.0,16.007,15.993,20.0]
[1673519313259,46.86,16.006,15.993,20.0]
[1673519313470,20.0,16.005,15.993,20.0]
[1673519313890,20.0,16.005,15.992,118.6838]
[1673519314210,63.87,16.004,15.992,118.6838]
[1673519314422,17.0,16.004,15.992,118.6838]
[1673519314632,17.0,16.005,15.992,118.6838]
[1673519314850,46.87,16.004,15.992,118.6838]
[1673519317261,46.87,16.004,15.987,40.0]
[1673519317455,17.0,16.003,15.987,20.0]
[1673519317671,46.87,16.002,15.987,20.0]
[1673519317884,17.0,16.001,15.987,20.0]
[1673519318295,17.0,16.001,15.986,40.0]
[1673519318833,37.62,16.0,15.985,46.92]
[1673519319023,20.0,15.998,15.976,251.8758]
[1673519319238,66.89,15.997,15.976,251.8758]
[1673519319664,66.89,15.997,15.977,46.95]
[1673519319890,66.89,15.997,15.978,20.0]
[1673519320432,66.89,15.997,15.979,1.92]
[1673519322002,17.0,15.996,15.979,1.92]
[1673519322216,66.89,15.995,15.979,1.92]
[1673519322424,66.89,15.995,15.98,17.74]
[1673519322750,66.89,15.995,15.98,13.34]
[1673519323800,66.89,15.995,15.979,1.92]
[1673519326836,20.0,15.995,15.981,20.0]
[1673519327044,20.0,15.998,15.982,0.96]
[1673519327241,46.89,15.997,15.983,0.96]
[1673519327449,20.0,15.996,15.983,0.96]
[1673519327663,20.0,15.996,15.982,0.96]
[1673519328100,20.0,15.998,15.982,0.96]
[1673519328305,46.89,15.997,15.982,0.96]
[1673519328505,20.0,15.996,15.982,0.96]
[1673519328928,46.89,15.995,15.982,0.96]
[1673519329885,46.89,15.995,15.981,20.0]
[1673519331357,46.89,15.995,15.982,0.96]
[1673519331566,20.0,15.996,15.983,0.96]
[1673519331791,20.0,15.998,15.984,0.96]
[1673519331996,46.89,15.997,15.984,0.96]
[1673519332204,20.0,15.996,15.984,0.96]
[1673519332403,20.0,15.996,15.985,0.96]
[1673519332614,20.0,15.998,15.986,0.96]
[1673519332832,46.89,15.997,15.986,0.96]
[1673519333143,20.0,15.996,15.986,0.96]
[1673519333571,46.88,15.999,15.986,0.96]
[1673519333785,46.87,16.003,15.988,20.0]
[1673519333978,46.86,16.006,15.988,20.0]
[1673519334189,46.86,16.006,15.989,0.96]
[1673519334945,17.0,16.005,15.989,0.96]
[1673519335134,46.87,16.004,15.989,0.96]
[1673519337240,46.87,16.004,15.988,128.8654]
[1673519337450,17.0,16.003,15.988,128.8654]
[1673519337654,46.87,16.002,15.988,128.8654]
[1673519340516,13.34,16.0,15.988,108.8654]
[1673519340707,46.88,15.999,15.988,108.8654]
[1673519341120,20.0,15.998,15.981,20.0]
[1673519341348,63.89,15.997,15.981,20.0]
[1673519341764,20.0,15.996,15.981,20.0]
[1673519341982,46.89,15.995,15.981,20.0]
[1673519346279,20.0,15.996,15.982,1.92]
[1673519346606,46.89,15.995,15.982,0.96]
[1673519346805,46.89,15.996,15.981,20.0]
[1673519347017,20.0,15.995,15.981,20.0]
[1673519347441,46.9,15.994,15.981,20.0]
[1673519348372,46.9,15.994,15.982,0.96]
[1673519348588,20.0,15.995,15.982,0.96]
[1673519348796,20.0,15.997,15.982,0.96]
[1673519349017,46.89,15.996,15.982,0.96]
[1673519349342,20.0,15.995,15.982,0.96]
[1673519349872,46.9,15.994,15.982,0.96]
[1673519350071,46.89,15.996,15.982,0.96]
[1673519350285,20.0,15.995,15.982,0.96]
[1673519350473,46.9,15.994,15.982,0.96]
[1673519351133,46.9,15.994,15.982,1.92]
[1673519352389,46.9,15.994,15.982,0.96]
[1673519352615,20.0,15.995,15.982,0.96]
[1673519352819,46.9,15.994,15.983,0.96]
[1673519353029,46.89,15.996,15.983,0.96]
[1673519353244,20.0,15.995,15.983,0.96]
[1673519353455,46.9,15.994,15.984,0.96]
[1673519353759,20.0,15.995,15.984,0.96]
[1673519353979,20.0,15.997,15.984,0.96]
[1673519354175,46.89,15.996,15.984,0.96]
[1673519354389,20.0,15.995,15.984,0.96]
[1673519355215,20.0,15.997,15.984,0.96]
[1673519355428,46.89,15.996,15.984,0.96]
[1673519355635,46.88,15.999,15.985,0.96]
[1673519355863,46.88,15.999,15.983,20.0]
[1673519355864,46.88,15.999,15.986,0.96]
[1673519356068,46.88,15.999,15.985,20.0]
[1673519356282,46.88,15.999,15.986,20.96]
[1673519359963,46.88,15.999,15.986,20.0]
[1673519365850,17.0,15.998,15.986,20.0]
[1673519366074,46.89,15.997,15.985,40.0]
[1673519366475,46.89,15.997,15.985,20.0]
[1673519366689,37.0,15.996,15.985,20.0]
[1673519366900,46.89,15.995,15.985,20.0]
[1673519371422,46.89,15.995,15.983,20.0]
[1673519371648,17.0,15.994,15.983,20.0]
[1673519371848,46.9,15.993,15.983,20.0]
[1673519372258,46.89,15.995,15.983,20.0]
[1673519372913,17.0,15.994,15.983,20.0]
[1673519373106,46.9,15.993,15.983,20.0]
[1673519374573,46.9,15.993,15.982,20.0]
[1673519375003,17.0,15.992,15.982,20.0]
[1673519375432,20.0,15.996,15.982,20.0]
[1673519375433,46.89,15.995,15.982,20.0]
[1673519375640,13.24,15.99,15.976,133.059]
[1673519375950,46.91,15.989,15.976,133.059]
[1673519376790,46.91,15.989,15.977,20.0]
[1673519377320,17.0,15.988,15.977,20.0]
[1673519377867,46.91,15.989,15.977,20.0]
[1673519381745,13.24,15.99,15.977,20.0]
[1673519382879,13.24,15.99,15.978,21.92]
[1673519385630,46.89,15.996,15.978,21.92]
[1673519385842,37.0,15.995,15.978,21.92]
[1673519386053,46.9,15.994,15.978,21.92]
[1673519387647,46.9,15.994,15.978,20.0]
[1673519387856,17.0,15.993,15.978,20.0]
[1673519388173,46.9,15.992,15.978,20.0]
[1673519388784,17.0,15.991,15.978,20.0]
[1673519390066,46.9,15.994,15.978,20.0]
[1673519390267,46.9,15.994,15.979,0.96]
[1673519391111,46.9,15.994,15.978,20.0]
[1673519391819,17.0,15.993,15.978,20.0]
[1673519392033,46.9,15.992,15.978,20.0]
[1673519392239,17.0,15.991,15.978,20.0]
[1673519392463,13.24,15.99,15.977,20.0]
[1673519392684,17.0,15.989,15.977,20.0]
[1673519392878,46.91,15.988,15.977,20.0]
[1673519393087,63.91,15.989,15.977,20.0]
[1673519396780,46.91,15.989,15.977,20.0]
[1673519396998,13.24,15.99,15.977,40.0]
[1673519398868,13.24,15.99,15.977,20.0]
[1673519398869,63.91,15.989,15.977,20.0]
[1673519404148,63.91,15.989,15.977,19.501]
[1673519408341,46.91,15.989,15.977,19.501]
[1673519408562,46.9,15.994,15.978,20.0]
[1673519409807,17.0,15.993,15.978,20.0]
[1673519410982,46.9,15.994,15.978,20.0]
[1673519411190,46.9,15.994,15.979,0.96]
[1673519412439,20.0,15.995,15.98,13.34]
[1673519412654,20.0,15.995,15.981,20.0]
[1673519412864,20.0,15.995,15.982,0.96]
[1673519413074,46.89,15.997,15.982,0.96]
[1673519413075,20.0,15.996,15.982,0.96]
[1673519416038,46.89,15.997,15.981,20.0]
[1673519416241,46.88,15.999,15.982,66.93]
[1673519416554,46.88,15.999,15.983,20.0]
[1673519416869,46.88,16.001,15.985,20.0]
[1673519417192,46.88,16.001,15.986,20.0]
[1673519417374,46.88,16.001,15.987,0.96]
[1673519418039,392.04008889,16.002,15.988,0.96]
[1673519418354,392.04008889,16.002,15.989,0.96]
[1673519418861,392.04008889,16.002,15.99,13.27]
[1673519419079,46.86,16.007,15.99,13.27]
[1673519419487,20.0,16.006,15.99,13.27]
[1673519419697,46.86,16.005,15.99,13.27]
[1673519420750,46.86,16.005,15.991,0.96]
[1673519421396,46.86,16.005,15.992,0.96]
[1673519421602,46.86,16.005,15.99,13.27]
[1673519421791,46.86,16.005,15.991,1.92]
[1673519422860,46.86,16.005,15.991,21.92]
[1673519423048,46.85,16.009,15.992,46.9]
[1673519423261,46.85,16.009,15.993,21.92]
[1673519423483,46.85,16.009,15.994,20.0]
[1673519423692,46.85,16.009,15.995,20.0]
[1673519423999,46.85,16.009,15.996,1.92]
[1673519424421,46.85,16.009,15.996,0.96]
[1673519425074,46.85,16.009,15.996,1.92]
[1673519425290,46.85,16.009,15.996,0.96]
[1673519425503,46.85,16.009,15.997,0.96]
[1673519425907,46.85,16.009,15.996,0.96]
[1673519426351,46.85,16.009,15.997,0.96]
[1673519427495,65.98496728,16.015,15.997,0.96]
[1673519428231,19.14496728,16.014,15.997,20.96]
[1673519428429,63.84,16.013,15.997,20.0]
[1673519428767,13.34,16.01,15.997,20.0]
[1673519428983,46.85,16.009,15.997,20.0]
[1673519429717,13.34,16.01,15.997,20.0]
[1673519429921,13.34,16.01,15.998,0.96]
[1673519430441,13.34,16.01,15.999,0.96]
[1673519430760,46.84,16.015,16.0,13.34]
[1673519430952,46.84,16.015,16.0,14.3]
[1673519431601,46.84,16.015,16.001,0.96]
[1673519431809,46.84,16.015,16.002,0.96]
[1673519435287,46.82,16.021,16.004,20.0]
[1673519435484,46.81,16.024,16.01,13.34]
[1673519436316,46.81,16.024,16.011,114.9056]
[1673519439584,111.1611,16.025,16.011,114.9056]
[1673519442117,46.8,16.027,16.012,20.0]
[1673519442329,20.0,16.026,16.012,20.0]
[1673519442852,20.0,16.027,16.012,20.0]
[1673519443057,46.8,16.026,16.012,20.0]
[1673519443373,20.0,16.025,16.011,114.9056]
[1673519443583,46.81,16.024,16.011,114.9056]
[1673519446219,20.0,16.025,16.012,21.92]
[1673519446428,46.8,16.028,16.012,20.0]
[1673519446429,20.0,16.027,16.012,20.0]
[1673519446649,46.8,16.026,16.011,114.9056]
[1673519446853,20.0,16.025,16.011,114.9056]
[1673519447066,46.31,16.024,16.011,114.9056]
[1673519447465,17.0,16.023,16.011,114.9056]
[1673519447680,46.31,16.024,16.011,114.9056]
[1673519447890,20.0,16.025,16.012,20.0]
[1673519448209,20.0,16.027,16.012,20.0]
[1673519449692,159.3072,16.029,16.015,20.0]
[1673519450309,13.35,16.03,16.015,20.0]
[1673519450517,46.79,16.029,16.015,20.0]
[1673519450963,13.35,16.03,16.016,1.92]
[1673519451268,46.79,16.029,16.015,20.0]
[1673519452928,19.14496728,16.028,16.008,20.0]
[1673519453139,13.26,16.02,16.008,108.9794]
[1673519455469,46.81,16.025,16.008,108.9794]
[1673519455795,46.81,16.025,16.01,13.27]
[1673519455987,156.0397,16.026,16.012,20.0]
[1673519456198,20.0,16.025,16.012,20.0]
[1673519460200,20.0,16.026,16.013,0.96]
[1673519460524,46.79,16.029,16.014,0.96]
[1673519460738,13.44,16.03,16.016,20.0]
[1673519460928,13.44,16.03,16.018,20.0]
[1673519462528,13.44,16.03,16.016,20.0]
[1673519462740,13.44,16.03,16.017,20.0]
[1673519468701,46.78,16.033,16.017,20.0]
[1673519468910,166.6117,16.037,16.019,20.0]
[1673519469124,20.0,16.036,16.02,0.96]
[1673519469335,46.78,16.035,16.021,0.96]
[1673519469769,46.77,16.036,16.019,20.0]
[1673519469964,37.0,16.035,16.019,20.0]
[1673519470188,46.78,16.034,16.019,20.0]
[1673519471660,46.78,16.034,16.02,0.96]
[1673519471872,46.77,16.037,16.021,0.96]
[1673519472416,46.77,16.037,16.022,0.96]
[1673519473133,20.0,16.036,16.022,0.96]
[1673519473344,46.78,16.035,16.022,0.96]
[1673519473550,20.0,16.036,16.023,0.96]
[1673519474199,20.0,16.036,16.019,66.82]
[1673519475551,20.0,16.036,16.021,20.0]
[1673519475762,46.78,16.035,16.022,1.92]
[1673519476198,66.77,16.036,16.022,1.92]
[1673519476412,66.77,16.036,16.021,20.0]
[1673519477245,46.77,16.036,16.022,32.66403586]
[1673519477447,46.77,16.039,16.022,32.66403586]
[1673519477657,46.77,16.037,16.023,20.0]
[1673519477870,46.77,16.037,16.024,21.92]
[1673519478288,46.77,16.037,16.024,20.96]
[1673519478512,46.77,16.037,16.024,20.0]
[1673519479133,20.0,16.036,16.02,169.5297]
[1673519479351,46.78,16.035,16.02,122.7097]
[1673519481025,66.62,16.03,16.013,20.0]
[1673519481234,66.62,16.03,16.012,20.0]
[1673519481235,66.79,16.029,16.012,20.0]
[1673519481448,83.79,16.029,16.012,20.0]
[1673519482392,46.79,16.029,16.013,13.62403586]
[1673519482601,46.79,16.029,16.015,20.0]
[1673519482814,13.26,16.03,16.016,21.92]
[1673519483135,46.79,16.029,16.016,21.92]
[1673519483349,46.79,16.029,16.016,34.58403586]
[1673519483558,109.1939,16.037,16.017,46.83]
[1673519483559,46.77,16.036,16.017,46.83]
[1673519483777,20.0,16.035,16.018,20.96]
[1673519483986,46.78,16.034,16.018,21.92]
[1673519484175,46.78,16.034,16.018,20.0]
[1673519484605,46.78,16.034,16.016,20.0]
[1673519485139,46.78,16.034,16.018,20.0]
[1673519485346,17.0,16.033,16.018,20.0]
[1673519485561,46.79,16.032,16.018,20.0]
[1673519489118,46.78,16.034,16.019,0.96]
[1673519489435,46.78,16.034,16.02,13.62403586]
[1673519489654,46.78,16.034,16.02,0.96]
[1673519489975,46.78,16.034,16.02,120.8217]
[1673519491131,20.0,16.035,16.021,13.62403586]
[1673519491534,20.0,16.035,16.022,20.0]
[1673519491740,20.0,16.035,16.023,0.96]
[1673519492076,20.0,16.035,16.023,1.92]
[1673519493758,20.0,16.035,16.023,14.58403586]
[1673519493974,20.0,16.036,16.023,14.58403586]
[1673519494157,46.78,16.035,16.023,1.92]
[1673519494684,46.78,16.035,16.022,20.0]
[1673519495727,46.78,16.035,16.022,32.66403586]
[1673519495943,46.77,16.037,16.022,32.66403586]
[1673519496152,109.7343,16.038,16.023,20.96]
[1673519496398,109.7343,16.038,16.024,20.0]
[1673519496616,109.7343,16.038,16.025,20.96]
[1673519496828,109.7343,16.038,16.025,20.0]
[1673519496829,46.77,16.037,16.025,20.0]
[1673519497021,46.77,16.037,16.026,0.96]
[1673519497231,46.77,16.039,16.026,0.96]
[1673519497441,46.75,16.045,16.026,20.96]
[1673519497662,46.75,16.045,16.027,66.8]
[1673519498079,46.75,16.045,16.027,20.0]
[1673519498499,46.75,16.045,16.028,20.96]
[1673519498823,46.75,16.045,16.029,0.96]
[1673519499032,46.75,16.045,16.03,0.96]
[1673519500699,46.75,16.045,16.029,114.8559]
[1673519500918,17.0,16.044,16.029,114.8559]
[1673519501125,46.75,16.043,16.029,114.8559]
[1673519503025,46.75,16.045,16.029,114.8559]
[1673519503880,17.0,16.044,16.029,114.8559]
[1673519504062,46.75,16.043,16.029,114.8559]
[1673519504805,17.0,16.042,16.029,114.8559]
[1673519506396,46.76,16.041,16.029,114.8559]
[1673519506583,17.0,16.042,16.029,114.8559]
[1673519507758,46.75,16.045,16.029,114.8559]
[1673519509204,46.75,16.045,16.029,127.51993586]
[1673519509419,111.1835,16.046,16.031,20.0]
[1673519509634,20.0,16.045,16.032,46.79]
[1673519509844,20.0,16.045,16.031,66.79]
[1673519510055,20.0,16.045,16.032,1.92]
[1673519510281,20.0,16.045,16.032,0.96]
[1673519510596,20.0,16.045,16.031,66.79]
[1673519511229,17.0,16.044,16.03,66.79]
[1673519511750,20.0,16.045,16.03,66.79]
[1673519511960,20.0,16.045,16.031,0.96]
[1673519512266,20.0,16.045,16.032,0.96]
[1673519512480,20.0,16.045,16.032,47.75]
[1673519512920,20.0,16.045,16.033,20.0]
[1673519513864,20.0,16.046,16.034,1.92]
[1673519514816,46.74,16.049,16.034,21.92]
[1673519515125,46.74,16.048,16.031,20.0]
[1673519515354,46.74,16.049,16.031,20.0]
[1673519515860,19.14496728,16.048,16.031,20.0]
[1673519516068,46.74,16.047,16.031,20.0]
[1673519516384,17.0,16.046,16.031,20.0]
[1673519516600,66.75,16.045,16.031,20.0]
[1673519517731,66.75,16.045,16.029,114.8559]
[1673519517952,17.0,16.044,16.029,114.8559]
[1673519518172,46.75,16.043,16.029,114.8559]
[1673519518362,17.0,16.042,16.029,114.8559]
[1673519518699,46.76,16.041,16.029,114.8559]
[1673519519103,46.75,16.044,16.029,114.8559]
[1673519519431,17.0,16.043,16.029,114.8559]
[1673519521209,17.0,16.043,16.03,20.0]
[1673519521638,17.0,16.044,16.03,20.0]
[1673519522361,66.75,16.045,16.031,0.96]
[1673519522578,20.0,16.045,16.031,47.75]
[1673519522902,20.0,16.046,16.031,47.75]
[1673519524266,20.0,16.046,16.032,20.0]
[1673519524589,20.0,16.046,16.033,0.96]
[1673519524791,20.0,16.047,16.032,20.0]
[1673519524990,66.74,16.047,16.032,20.0]
[1673519525412,17.0,16.046,16.032,20.0]
[1673519525623,20.0,16.045,16.032,20.0]
[1673519526458,46.74,16.047,16.033,20.0]
[1673519526669,46.73,16.052,16.034,1.92]
[1673519526903,46.72,16.053,16.036,20.0]
[1673519527106,46.72,16.053,16.037,20.0]
[1673519527739,46.72,16.053,16.038,122.94893586]
[1673519527942,114.4172,16.056,16.04,20.0]
[1673519528149,20.0,16.055,16.04,20.0]
[1673519528574,20.0,16.055,16.041,0.96]
[1673519528781,20.0,16.057,16.041,47.72]
[1673519528994,46.72,16.056,16.041,47.72]
[1673519529215,20.0,16.055,16.04,46.76]
[1673519529532,46.72,16.054,16.038,110.2849]
[1673519529735,17.0,16.053,16.038,110.2849]
[1673519530064,46.72,16.054,16.038,110.2849]
[1673519530250,17.0,16.053,16.038,110.2849]
[1673519530783,46.72,16.054,16.038,110.2849]
[1673519530975,20.0,16.055,16.038,110.2849]
[1673519531190,20.0,16.057,16.039,79.43403586]
[1673519531417,46.72,16.056,16.039,79.43403586]
[1673519531733,20.0,16.055,16.039,66.77]
[1673519532056,20.0,16.055,16.04,1.92]
[1673519532240,20.0,16.057,16.04,1.92]
[1673519532570,20.0,16.057,16.04,14.58403586]
[1673519532785,46.72,16.056,16.04,1.92]
[1673519532993,20.0,16.055,16.04,1.92]
[1673519533622,20.0,16.057,16.04,1.92]
[1673519533831,17.0,16.056,16.04,1.92]
[1673519534042,20.0,16.055,16.04,1.92]
[1673519534676,46.72,16.054,16.04,1.92]
[1673519534879,66.72,16.055,16.04,1.92]
[1673519535203,20.0,16.055,16.04,14.58403586]
[1673519535416,20.0,16.055,16.039,66.77]
[1673519535628,20.0,16.057,16.039,66.77]
[1673519535941,46.72,16.056,16.039,66.77]
[1673519536143,20.0,16.055,16.039,66.77]
[1673519536778,20.0,16.057,16.04,0.96]
[1673519536993,46.72,16.056,16.04,1.92]
[1673519537201,20.0,16.055,16.04,1.92]
[1673519537603,20.0,16.057,16.04,1.92]
[1673519537831,46.72,16.056,16.04,1.92]
[1673519538046,20.0,16.055,16.04,1.92]
[1673519538252,20.0,16.055,16.04,14.58403586]
[1673519538684,20.0,16.057,16.04,14.58403586]
[1673519538898,46.72,16.056,16.04,14.58403586]
[1673519539109,20.0,16.055,16.04,14.58403586]
[1673519539432,20.0,16.055,16.04,1.92]
[1673519539642,46.71,16.058,16.04,1.92]
[1673519539643,20.0,16.057,16.04,1.92]
[1673519539953,46.72,16.056,16.04,1.92]
[1673519540157,20.0,16.055,16.04,1.92]
[1673519540370,46.72,16.054,16.04,1.92]
[1673519540582,46.71,16.058,16.041,20.0]
[1673519540790,46.71,16.058,16.042,0.96]
[1673519540992,20.0,16.057,16.039,20.0]
[1673519541201,63.72,16.056,16.039,20.0]
[1673519542163,20.0,16.055,16.039,20.0]
[1673519542380,46.72,16.054,16.039,20.0]
[1673519542896,46.72,16.055,16.039,20.0]
[1673519545417,83.72,16.055,16.035,20.0]
[1673519545825,20.0,16.054,16.035,20.0]
[1673519546043,63.72,16.053,16.035,20.0]
[1673519546368,20.0,16.052,16.035,20.0]
[1673519546549,63.73,16.051,16.035,20.0]
[1673519547510,63.73,16.051,16.034,109.1963]
[1673519547720,40.0,16.05,16.029,161.6459]
[1673519547934,20.0,16.048,16.029,226.0311]
[1673519548137,83.74,16.047,16.029,226.0311]
[1673519554254,83.74,16.047,16.029,239.78507926]
[1673519554440,83.74,16.047,16.029,226.0311]
[1673519555695,66.74,16.047,16.029,226.0311]
[1673519556746,66.74,16.047,16.03,46.79]
[1673519556962,17.0,16.046,16.029,226.0311]
[1673519557173,66.75,16.045,16.03,46.79]
[1673519557487,17.0,16.044,16.03,46.79]
[1673519559820,20.0,16.045,16.031,20.0]
[1673519560031,46.73,16.05,16.032,46.79]
[1673519560032,20.0,16.049,16.032,46.79]
[1673519560247,63.74,16.048,16.032,46.79]
[1673519560463,20.0,16.047,16.032,46.79]
[1673519560683,17.0,16.046,16.032,46.79]
[1673519561201,20.0,16.045,16.032,46.79]
[1673519566873,20.0,16.045,16.031,46.79]
[1673519567276,20.0,16.049,16.032,21.92]
[1673519567485,20.0,16.049,16.033,46.78]
[1673519568637,20.0,16.049,16.034,1.92]
[1673519568853,20.0,16.049,16.035,46.78]
[1673519569085,20.0,16.049,16.033,46.78]
[1673519571182,63.74,16.048,16.032,66.79]
[1673519571392,20.0,16.047,16.032,66.79]
[1673519571603,20.0,16.047,16.033,1.92]
[1673519572122,20.0,16.049,16.033,1.92]
[1673519573282,20.0,16.049,16.034,46.78]
[1673519573477,46.73,16.051,16.035,20.0]
[1673519573694,46.72,16.053,16.037,20.0]
[1673519574013,46.72,16.053,16.038,109.9488]
[1673519574630,162.6592,16.054,16.04,20.0]
[1673519574840,83.44017093,16.055,16.04,20.0]
[1673519576023,17.0,16.054,16.039,46.77]
[1673519577791,17.0,16.054,16.038,156.7188]
[1673519578125,17.0,16.054,16.038,109.9488]